Cogmind - Beta 11 X7 @@@ ROGUE MODE // 2021.09.08 @ 18:31:49 // Winter2019/RPGLIKE Player: Plexion Result: Self-destructed Performance ------------- Evolutions (6) 3000 Regions Visited (22) 4400 Robots Destroyed (158) 790 Value Destroyed (6982) 6982 Prototype IDs (49) 980 Alien Tech Used (0) 0 Bonus (5276) 5276 TOTAL SCORE: 21428 Bonus ------- High Alert Combat Kills 1125 Follower Combat Kills 2290 Entered Garrisons 400 Used RIF Installer 1000 Network Hubs Disabled 200 Aligned with FarCom 300 Met Data Miner 300 Built Enhanced Grunts 300 Met R17 at Cetus 500 Friendly Fire -1139 Cogmind --------- Core Integrity 311/3200 Matter 300/300 Energy 404/670 System Corruption 0% Temperature Cool (0) Movement Hovering (220) Ox2 Location -4/Factory Parts ------- > --- POWER (1) -------- Micro Fission Core > --- PROPULSION (3) --- Combat Antigrav System > --- UTILITY (10) ----- Advanced Cooling System Advanced Energy Well Advanced Signal Interpreter Advanced Core Analyzer Quantum Capacitor Improved Hacking Suite Relay Coupler [Swarmer] (58) > --- WEAPON (2) ------- EMDS > --- INVENTORY (4) ---- Neutron Cannon Improved KE Penetrator Long-range Missile Launcher Improved Remote Datajack Peak State ------------ > --- POWER ------------ Micro Fission Core > --- PROPULSION ------- Gravmag Array Combat Antigrav System > --- UTILITY ---------- Advanced Heat Sink Advanced Heat Sink Advanced Cooling System Advanced Energy Well Advanced Signal Interpreter Advanced Core Analyzer Centrium Medium Armor Plating Centrium Medium Armor Plating Improved Hacking Suite Relay Coupler [Swarmer] > --- WEAPON ----------- Improved KE Penetrator Improved KE Penetrator > --- INVENTORY -------- Quantum Capacitor Long-range Missile Launcher Improved Remote Datajack [Rating: 105] Favorites ----------- Power Light Angular Momentum Engine Engine Light Angular Momentum Engine Power Core Light Nuclear Core Propulsion Gravmag Array Treads Light Treads Leg Makeshift Leg Wheel Armored Wheel Hover Unit Gravmag Array Utility Advanced Core Analyzer Device Advanced Heat Sink Storage Advanced Energy Well Processor Advanced Core Analyzer Hackware Relay Coupler [Sentry] Protection Layered Medium Armor Plating Weapon 8R-AWN's Boregun Energy Gun Heavy Laser Energy Cannon Heavy Plasma Cannon Ballistic Gun 8R-AWN's Boregun Launcher Long-range Missile Launcher Special Weapon Remote Datajack Slashing Weapon Ionic Axe Build | -11 -10 -9 -9 -9 -8 -8 -8 -8 -8 -6 -6 -6 -6 -6 -6 -5 -5 -5 -5 -5 -5 -4 ------- Run | Scr Mat Mat Min Exi Min Mat Sto Gar Rec Fac Gar Fac Low Low Dat Pro Fac Ext Cet Arc Hub Fac Slots Evolved 12 | 3 . 3 . . . . . 2 . 3 1 . . . . . . . . . . . Power . | . . . . . . . . . . . . . . . . . . . . . . . Propulsion 2 | 1 . . . . . . . . . 1 . . . . . . . . . . . . Utility 9 | 1 . 3 . . . . . 2 . 2 1 . . . . . . . . . . . Weapon 1 | 1 . . . . . . . . . . . . . . . . . . . . . . Parts Attached 144 | 7 6 16 1 18 2 1 2 5 1 28 18 3 . 1 1 . 9 9 10 . 5 1 Power 9 | 1 1 1 . . 1 . . . . 2 2 . . . . . 1 . . . . . Engine 6 | 1 . 1 . . . . . . . 2 2 . . . . . . . . . . . Core 3 | . 1 . . . 1 . . . . . . . . . . . 1 . . . . . Reactor . | . . . . . . . . . . . . . . . . . . . . . . . Propulsion 23 | 4 2 2 . 7 . . . . . 4 . 1 . . . . 2 1 . . . . Treads 2 | 2 . . . . . . . . . . . . . . . . . . . . . . Leg 7 | . . . . 6 . . . . . . . . . . . . 1 . . . . . Wheel 4 | 2 2 . . . . . . . . . . . . . . . . . . . . . Hover 10 | . . 2 . 1 . . . . . 4 . 1 . . . . 1 1 . . . . Flight . | . . . . . . . . . . . . . . . . . . . . . . . Utility 54 | . 3 5 1 8 . 1 . 4 1 7 10 . . . . . 4 4 3 . 3 . Device 18 | . . 1 1 4 . . . . 1 2 1 . . . . . 2 3 1 . 2 . Storage 3 | . . . . . . . . . . 2 1 . . . . . . . . . . . Processor 8 | . 2 2 . 1 . 1 . 1 . 1 . . . . . . . . . . . . Hackware 10 | . . . . . . . . 3 . . 6 . . . . . 1 . . . . . Protection 15 | . 1 2 . 3 . . . . . 2 2 . . . . . 1 1 2 . 1 . Artifact . | . . . . . . . . . . . . . . . . . . . . . . . Weapon 58 | 2 . 8 . 3 1 . 2 1 . 15 6 2 . 1 1 . 2 4 7 . 2 1 Energy Gun 2 | . . 1 . . 1 . . . . . . . . . . . . . . . . . Energy Cannon 9 | . . . . . . . . . . 2 1 1 . . 1 . 1 . 1 . 1 1 Ballistic Gun 29 | 2 . 5 . 2 . . 1 1 . 7 2 . . . . . . 2 6 . 1 . Ballistic Cannon . | . . . . . . . . . . . . . . . . . . . . . . . Launcher 10 | . . 2 . 1 . . 1 . . 2 2 1 . . . . . 1 . . . . Special Weapon 7 | . . . . . . . . . . 3 1 . . 1 . . 1 1 . . . . Impact Weapon . | . . . . . . . . . . . . . . . . . . . . . . . Slashing Weapon 1 | . . . . . . . . . . 1 . . . . . . . . . . . . Piercing Weapon . | . . . . . . . . . . . . . . . . . . . . . . . Special Melee Weapon . | . . . . . . . . . . . . . . . . . . . . . . . Unidentified Prototypes 12 | . . 1 1 3 . . . . . 4 . . . . . . . . 2 . . 1 Parts Lost 14 | . . 1 . 3 . . 1 . . . 3 . . . . 1 1 . 1 . 3 . Power 1 | . . . . . . . . . . . 1 . . . . . . . . . . . Propulsion 3 | . . . . 2 . . . . . . . . . . . . . . . . 1 . Utility 9 | . . 1 . 1 . . 1 . . . 2 . . . . 1 1 . . . 2 . Weapon 1 | . . . . . . . . . . . . . . . . . . . 1 . . . Highest Loss Streak 3 | . . 1 . 2 . . 1 . . . 1 . . . . 1 1 . 1 . 3 . Average Slot Usage (%) 88 | . 96 78 96 86 90 90 89 82 100 92 91 93 93 93 87 89 88 85 84 87 81 62 Engine 4 | . 4 1 10 10 2 . . . . 6 5 6 6 6 6 6 1 . . . . . Core 3 | . 10 9 . . 7 10 10 8 8 . . . . . . . 4 6 6 6 6 6 Leg 4 | . . . . 6 20 20 20 17 16 2 . . . . . . . . . . . . Wheel 1 | . 28 7 . . . . . . . . . . . . . . . . . . . . Hover 9 | . . 13 20 10 . . . . . 8 12 12 12 12 12 12 11 12 12 12 11 6 Device 6 | . . . 6 7 10 10 10 4 8 3 4 6 6 6 6 6 9 12 16 18 8 12 Storage 2 | . . . . . . . . . . . 2 6 6 6 6 6 6 6 6 6 6 6 Processor 18 | . 16 11 30 26 20 20 20 21 25 24 18 12 12 12 12 12 12 12 12 12 12 12 Hackware 14 | . . . . . . . . 11 25 22 27 31 31 31 31 31 28 13 12 12 12 12 Protection 6 | . 7 13 10 5 10 10 9 . . 5 5 6 6 6 6 2 . 8 6 6 10 . Energy Cannon 2 | . . . . . . . . . . . 2 5 6 6 . 6 6 5 . . 5 6 Ballistic Gun 9 | . 28 21 20 19 12 10 9 12 16 9 2 . . . . . . 2 10 12 6 . Special Weapon 2 | . . . . . . . . . . 3 3 6 6 6 6 6 6 3 . . . . Naked Turns . | . . . . . . . . . . . . . . . . . . . . . . . Heaviest Build 41 | 6 11 14 13 37 40 40 40 16 16 29 33 33 33 34 34 34 31 41 38 31 41 35 Greatest Support 40 | 40 26 24 12 40 40 40 40 40 40 40 36 36 36 36 36 36 36 36 36 36 36 16 Greatest Overweight (x) 4 | . . 2 1 4 . . . . . 1 . . . . . . 1 1 1 . 2 2 Average Overweight (x) . | . . . . . . . . . . . . . . . . . . . . . . 1 Largest Inventory Capacity 4 | 2 2 2 2 2 3 3 3 4 4 4 4 4 4 4 4 4 4 4 4 4 4 4 Average Capacity 3 | 1 2 2 2 2 2 3 3 3 4 4 4 4 4 4 4 4 4 4 4 4 4 4 Most Carried 4 | 2 2 2 2 2 2 3 3 4 4 4 4 4 4 4 4 4 4 4 4 4 4 4 Average Carried 3 | . 1 1 1 1 2 2 3 3 3 3 3 4 4 4 4 4 3 3 4 4 3 3 Final Capacity 4 | 2 2 2 2 2 3 3 3 4 4 4 4 4 4 4 4 4 4 4 4 4 4 4 Final Carried 4 | 1 2 1 1 2 2 3 3 4 3 4 4 4 4 4 4 4 4 4 4 4 4 4 Class Distribution -------------------- 43% | Scavenger-Mutant 21% | Bothacker-Mutant 13% | Hacker-Mutant 10% | Scavenger-Skirmisher 8% | Mutant Dominant Class ---------------- Mutant | -10/Materials Mutant | -9/Materials Scavenger-Skirmisher | -9/Mines Scavenger-Skirmisher | -9/Exiles Scavenger-Mutant | -8/Mines Scavenger-Mutant | -8/Materials Scavenger-Mutant | -8/Storage Scavenger-Mutant | -8/Garrison Scavenger-Mutant | -8/Recycling Scavenger-Mutant | -6/Factory Bothacker-Mutant | -6/Garrison Bothacker-Mutant | -6/Factory Bothacker-Mutant | -6/Lower Caves Bothacker-Mutant | -6/Lower Caves Bothacker-Mutant | -6/Data Miner Bothacker-Mutant | -5/Proximity Caves Bothacker-Mutant | -5/Factory Hacker-Mutant | -5/Extension Scavenger-Mutant | -5/Cetus Scavenger-Mutant | -5/Archives Hacker-Mutant | -5/Hub_04(d) Hacker-Mutant | -4/Factory Resources | -11 -10 -9 -9 -9 -8 -8 -8 -8 -8 -6 -6 -6 -6 -6 -6 -5 -5 -5 -5 -5 -5 -4 ----------- Run | Scr Mat Mat Min Exi Min Mat Sto Gar Rec Fac Gar Fac Low Low Dat Pro Fac Ext Cet Arc Hub Fac Matter Collected 5967 | 270 52 563 . 720 183 167 260 301 87 941 851 136 6 19 . 56 145 416 411 56 207 120 Remotely . | . . . . . . . . . . . . . . . . . . . . . . . Salvage Created 5920 | . 70 750 . 321 58 35 535 301 . 991 792 226 . . . . 34 555 391 . 537 324 Parts 447 | . 6 64 . 58 3 12 30 23 3 59 53 20 . . . . 16 32 29 . 28 11 Haulers Intercepted 3 | . . 2 . . . . 1 . . . . . . . . . . . . . . . Recyclers Shooed 2 | . . . . . . . . . . 1 . . . . . . . 1 . . . . Parts Field Recycled . | . . . . . . . . . . . . . . . . . . . . . . . Retrieved Matter . | . . . . . . . . . . . . . . . . . . . . . . . Parts Self-Destructed 3 | . . . . . . . . . . . . . . . . 3 . . . . . . Prevented . | . . . . . . . . . . . . . . . . . . . . . . . Kills | -11 -10 -9 -9 -9 -8 -8 -8 -8 -8 -6 -6 -6 -6 -6 -6 -5 -5 -5 -5 -5 -5 -4 ------- Run | Scr Mat Mat Min Exi Min Mat Sto Gar Rec Fac Gar Fac Low Low Dat Pro Fac Ext Cet Arc Hub Fac Combat Hostiles Destroyed 114 | . 2 18 . 3 2 1 11 9 1 18 21 6 . . . . 2 7 8 . 1 4 Melee 1 | . . . . . . . . . . . 1 . . . . . . . . . . . Guns 64 | . 2 14 . 1 2 1 7 9 1 11 8 . . . . . . . 8 . . . Cannons 13 | . . . . . . . . . . . 1 5 . . . . 2 3 . . 1 1 AOE 32 | . . 4 . 2 . . 4 . . 7 11 1 . . . . . 3 . . . . Classes Destroyed 20 | . 2 6 . 3 . 1 1 1 1 1 2 1 . . . . . . . . 1 . Worker 13 | . 1 1 . . . 1 2 . . 1 . . . . . . 1 . . . 6 . Builder 6 | . . 1 . . . . 1 . . . . . . . . . 1 1 . . 2 . Tunneler 1 | . . . . . . . . . . . . . . . . . . . . . 1 . Hauler 3 | . . 2 . . . . 1 . . . . . . . . . . . . . . . Recycler 5 | . . 2 . . . . 1 . . 1 . . . . . . . 1 . . . . Operator 2 | . . . . . . 1 . . . 1 . . . . . . . . . . . . Drone 1 | . . . . . . . . . 1 . . . . . . . . . . . . . Turret 1 | . . . . 1 . . . . . . . . . . . . . . . . . . Watcher 3 | . . 1 . . . . . . . 1 . . . . . . . . 1 . . . Swarmer 25 | . . 5 . . . . 4 . . 6 10 . . . . . . . . . . . Saboteur 1 | . . . . . . . . . . . . 1 . . . . . . . . . . Grunt 51 | . 2 9 . . 2 . 5 8 . 7 8 1 . . . . . 3 3 . . 3 Brawler 3 | . . . . . . . 1 . . . 1 . . . . . . . . . . 1 Duelist 1 | . . . . . . . . . . . 1 . . . . . . . . . . . Sentry 10 | . . 4 . . . 1 1 . . 2 . 2 . . . . . . . . . . Hunter 3 | . . . . . . . . 1 . . . . . . . . . 2 . . . . Programmer 8 | . . . . . . . . . . 3 . 2 . . . . 2 . . . 1 . Behemoth 3 | . . . . . . . . . . . 1 . . . . . . 2 . . . . Cetus Guard 5 | . . . . . . . . . . . . . . . . . . . 5 . . . Enhanced Grunt 2 | . . . . . . . . . . . . . . . . . . . . . 2 . Zionite 8 | . . . . 8 . . . . . . . . . . . . . . . . . . Assembled 2 | . . . . 2 . . . . . . . . . . . . . . . . . . Best Kill Streak 9 | . 2 8 . 5 2 1 5 4 1 4 9 1 . . . . 3 5 4 . 5 2 Combat Bots Only 9 | . 2 4 . 2 2 1 4 4 1 4 9 1 . . . . 2 3 3 . 1 2 Max Kills in Single Turn 5 | . 1 3 . 1 1 1 2 1 1 3 5 1 . . . . 1 1 1 . 4 1 Gunslinging . | . . . . . . . . . . . . . . . . . . . . . . . Exploded 5 | . . 3 . 1 . . 2 . . 3 5 1 . . . . . 1 . . . . Melee 1 | . . . . . . . . . . . 1 . . . . . . . . . . . Uniques/NPCs Destroyed 4 | . . . . 4 . . . . . . . . . . . . . . . . . . 8R-AWN (-9/Exiles) EX-HEX (-9/Exiles) EX-DEC (-9/Exiles) EX-BIN (-9/Exiles) Combat | -11 -10 -9 -9 -9 -8 -8 -8 -8 -8 -6 -6 -6 -6 -6 -6 -5 -5 -5 -5 -5 -5 -4 -------- Run | Scr Mat Mat Min Exi Min Mat Sto Gar Rec Fac Gar Fac Low Low Dat Pro Fac Ext Cet Arc Hub Fac Damage Taken 13628 | . 24 821 . 1018 241 . 743 519 . 1882 1023 532 21 . . 296 773 830 1055 131 3343 376 Core 9808 | . 22 563 . 769 150 . 472 438 . 1467 709 316 8 . . 237 633 583 761 84 2302 294 Absorbed by Shields 519 | . . . . . . . . . . . 28 . . . . . . 353 138 . . . Redirected to Core 7286 | . 8 414 . 551 150 . 359 277 . 921 529 287 8 . . 145 512 426 568 84 1774 273 Core Remaining (%) 73 | 100 100 . . . 79 . . . 84 . . . . . . 65 . . . . 13 . Volleys Fired 759 | . 8 82 3 129 15 7 47 42 3 86 120 29 4 . 2 . 42 50 38 7 34 11 Largest 2 | . 2 2 2 2 2 2 2 2 1 2 1 1 1 . 1 . 1 2 2 2 2 1 Hottest 125 | . 40 46 46 53 99 99 99 99 30 120 90 90 90 . 40 . 90 120 120 70 125 70 Shots Fired 1044 | . 16 161 6 172 30 14 54 63 3 112 122 31 4 . 2 . 44 67 67 14 51 11 Gun 810 | . 16 158 6 168 30 14 51 63 3 87 81 . . . . . . 21 66 14 32 . Cannon 152 | . . . . . . . . . . 4 16 24 4 . . . 36 37 1 . 19 11 Launcher 25 | . . 3 . 4 . . 3 . . 5 6 1 . . . . . 3 . . . . Special 57 | . . . . . . . . . . 16 19 6 . . 2 . 8 6 . . . . Kinetic 789 | . 16 158 6 168 29 7 44 57 3 87 81 . . . . . . 21 66 14 32 . Thermal 162 | . . . . . 1 7 7 6 . 4 16 24 4 . . . 36 37 1 . 19 . Explosive 25 | . . 3 . 4 . . 3 . . 5 6 1 . . . . . 3 . . . . Electromagnetic 11 | . . . . . . . . . . . . . . . . . . . . . . 11 Robot Hit Streak 17 | . 8 13 4 17 5 3 7 9 6 10 15 10 1 . 1 . 6 13 15 2 5 4 Robot Miss Streak 7 | . 1 3 1 5 5 3 6 2 2 7 5 2 1 . 1 . 3 5 4 3 4 1 Penetration Max 2 | . . . . 2 . 1 1 1 1 1 2 . . . . . . 1 1 . 1 . Secondary Targets 7 | . 1 2 . . . . . 1 . 2 . . . . . . . . 1 . . . Max Gunslinging Chain 1 | . 1 1 . . . . . 1 . 1 . . . . . . . . 1 . . . Capacitor 23 | . . . . . . . . . . . . . . . . . . 12 . . . 11 Shots Hit Robots 633 | . 13 112 5 102 16 6 27 42 1 69 68 19 2 . 1 . 22 41 51 7 24 5 Core Hits 325 | . 6 44 . 35 6 3 27 24 1 43 43 11 . . . . 6 22 20 5 22 7 Critical Kills 37 | . . . . 2 1 2 5 3 1 6 7 . . . . . . 1 7 . 2 . Critical Parts Destroyed 67 | . . . . 7 3 1 11 9 1 9 10 . . . . . . 6 7 . 3 . Critical Strikes 115 | . . . . 10 4 3 16 12 2 15 22 . . . . . . 9 15 . 5 2 Meltdown 1 | . . . . . . . . . . . . . . . . . . 1 . . . . Destroy 112 | . . . . 10 4 3 16 12 2 15 22 . . . . . . 8 15 . 5 . Corrupt 2 | . . . . . . . . . . . . . . . . . . . . . . 2 Melee Attacks 8 | . . . . . . . . . . 5 3 . . . . . . . . . . . Impact . | . . . . . . . . . . . . . . . . . . . . . . . Slashing 8 | . . . . . . . . . . 5 3 . . . . . . . . . . . Piercing . | . . . . . . . . . . . . . . . . . . . . . . . Sneak Attacks 2 | . . . . . . . . . . 2 . . . . . . . . . . . . Combat Hostiles . | . . . . . . . . . . . . . . . . . . . . . . . Follow-up Attacks . | . . . . . . . . . . . . . . . . . . . . . . . Damage Inflicted 16743 | . 131 1618 75 1693 279 124 976 714 32 2017 2434 641 70 . . . 733 1768 1343 226 1428 441 Guns 9404 | . 131 1259 75 1518 279 124 677 714 32 1138 1027 . . . . . . 255 1312 226 637 . Cannons 3014 | . . . . . . . . . . . 166 473 70 . . . 733 829 31 . 271 441 Explosions 3962 | . . 359 . 175 . . 299 . . 611 1177 168 . . . . . 684 . . 489 . Melee 332 | . . . . . . . . . . 268 64 . . . . . . . . . . . Ramming 31 | . . . . . . . . . . . . . . . . . . . . . 31 . Kinetic 9233 | . 131 1259 75 1518 261 85 600 677 32 1138 1027 . . . . . . 255 1312 226 637 . Thermal 2744 | . . . . . 18 39 77 37 . . 166 473 70 . . . 733 829 31 . 271 . Explosive 3473 | . . 359 . 175 . . 299 . . 611 1177 168 . . . . . 684 . . . . Electromagnetic 930 | . . . . . . . . . . . . . . . . . . . . . 489 441 Impact . | . . . . . . . . . . . . . . . . . . . . . . . Slashing 332 | . . . . . . . . . . 268 64 . . . . . . . . . . . Piercing . | . . . . . . . . . . . . . . . . . . . . . . . Highest Corruption 34 | . . . . . . . . . . 9 9 11 11 11 11 11 9 9 9 9 34 . Average Corruption 7 | . . . . . . . . . . 1 9 9 11 11 11 11 8 9 9 9 11 . Corruption Purged . | . . . . . . . . . . . . . . . . . . . . . . . Effects 193 | . . . . . . . . . . 14 25 24 12 8 2 9 21 30 17 2 29 . Message Errors 45 | . . . . . . . . . . 5 5 5 2 3 . 2 2 9 4 1 7 . Matter Fused 45 | . . . . . . . . . . 2 5 7 1 3 . 3 6 8 5 . 5 . Heat Flow Errors 20 | . . . . . . . . . . 2 3 1 4 . . 1 3 2 2 . 2 . Energy Discharges 20 | . . . . . . . . . . . 5 6 . 1 . . 1 2 2 . 3 . Parts Rejected 2 | . . . . . . . . . . . . . . . . . . 1 . . 1 . Data Loss (minor) 29 | . . . . . . . . . . 2 5 2 2 . 2 1 5 5 . 1 4 . Data Loss (major) 12 | . . . . . . . . . . . . 1 2 1 . 2 2 3 . . 1 . Misfires 10 | . . . . . . . . . . . 2 2 . . . . 2 . 1 . 3 . Alerts 2 | . . . . . . . . . . . . . 1 . . . . . . . 1 . Weapon Failures 8 | . . . . . . . . . . 3 . . . . . . . . 3 . 2 . Overload Shots . | . . . . . . . . . . . . . . . . . . . . . . . Overflow Damage 222 | . . . . 6 . . 11 . . . 18 . . . . . 32 102 . . 50 3 Projectiles 41 | . . . . . . . . . . . 6 . . . . . 32 . . . . 3 Explosions 181 | . . . . 6 . . 11 . . . 12 . . . . . . 102 . . 50 . Melee . | . . . . . . . . . . . . . . . . . . . . . . . Knockbacks . | . . . . . . . . . . . . . . . . . . . . . . . Impact . | . . . . . . . . . . . . . . . . . . . . . . . Kinetic . | . . . . . . . . . . . . . . . . . . . . . . . Secondary . | . . . . . . . . . . . . . . . . . . . . . . . Self-Inflicted Damage 111 | . . . . . . . . . . . . . . . . . . . . . 111 . Shots 1 | . . . . . . . . . . . . . . . . . . . . . 1 . Rammed 9 | . . . . . . . . . . . . . . . . . . . . . 9 . Targets Rammed 9 | . . . . . . . . . . . . . . . . . . . . . 9 . Kicked . | . . . . . . . . . . . . . . . . . . . . . . . Crushed . | . . . . . . . . . . . . . . . . . . . . . . . Highest Temperature 327 | . 10 148 . 2 45 180 171 225 . 232 327 262 190 . 15 179 243 279 219 . 253 104 Average Temperature 62 | . 4 34 . 2 10 65 70 42 . 43 103 56 84 . 13 102 85 120 106 . 44 45 Received Heat Transfer 2458 | . 15 321 . . 126 . 495 315 . 390 204 69 . . . 129 54 78 98 . 27 137 Effects 12 | . . . . . . . . 3 . . 9 . . . . . . . . . . . Shutdowns 1 | . . . . . . . . . . . 1 . . . . . . . . . . . Energy Bleed 2 | . . . . . . . . . . . 2 . . . . . . . . . . . Interference 9 | . . . . . . . . 3 . . 6 . . . . . . . . . . . Siege Activations . | . . . . . . . . . . . . . . . . . . . . . . . Robots Corrupted 4 | . . . . . . . . . . . . . . . . . . . . . 1 3 Combat Hostiles 3 | . . . . . . . . . . . . . . . . . . . . . . 3 Parts Fried 12 | . . . . . . . . . . . . . . . . . . . . . 6 6 Impact Corruptions . | . . . . . . . . . . . . . . . . . . . . . . . Robots Melted 1 | . . . . . . . . . . . . . . . . . . 1 . . . . Combat Hostiles 1 | . . . . . . . . . . . . . . . . . . 1 . . . . Parts Melted 9 | . . . . . . . 1 . . 1 . . . . . . 3 4 . . . . Heat Transferred 3758 | . . . . . 37 74 148 74 . . 250 700 100 . . . 950 1200 50 . 175 . Parts Sabotaged . | . . . . . . . . . . . . . . . . . . . . . . . Parts Stolen . | . . . . . . . . . . . . . . . . . . . . . . . Parts Stripped . | . . . . . . . . . . . . . . . . . . . . . . . Power Chain Reactions . | . . . . . . . . . . . . . . . . . . . . . . . Missiles Intercepted . | . . . . . . . . . . . . . . . . . . . . . . . Alert | -11 -10 -9 -9 -9 -8 -8 -8 -8 -8 -6 -6 -6 -6 -6 -6 -5 -5 -5 -5 -5 -5 -4 ------- Run | Scr Mat Mat Min Exi Min Mat Sto Gar Rec Fac Gar Fac Low Low Dat Pro Fac Ext Cet Arc Hub Fac Peak Influence 1651 | . 96 399 155 . 53 116 457 598 380 1201 1651 1179 . . . . 683 541 785 516 391 175 Initial 1059 | . . 40 155 . . 20 48 177 268 1059 663 866 . . . . 56 252 241 314 180 25 Average 465 | . 75 266 155 . 48 94 255 356 325 573 1223 991 . . . . 330 331 504 455 136 113 Maximum Alert Level 5 | . . 1 . . . . 2 2 1 4 5 4 . . . . 2 2 3 2 1 . Low Security (%) 32 | 100 100 23 100 . 100 100 24 23 . 19 . . . . . . 39 29 . . 59 100 Level 1 25 | . . 76 . . . . 58 39 100 16 . . . . . . 10 34 38 28 40 . Level 2 15 | . . . . . . . 16 37 . 16 8 . . . . . 50 36 46 71 . . Level 3 17 | . . . . . . . . . . 44 13 92 . . . . . . 15 . . . Level 4 7 | . . . . . . . . . . 2 69 7 . . . . . . . . . . Level 5 . | . . . . . . . . . . . 9 . . . . . . . . . . . High Security . | . . . . . . . . . . . . . . . . . . . . . . . Max Security . | . . . . . . . . . . . . . . . . . . . . . . . Squads Dispatched 30 | . . 4 . . . . 2 . . 12 . 4 . . . . 1 3 . . 4 . Investigation 4 | . . . . . . . . . . 1 . 1 . . . . 1 1 . . . . Extermination 4 | . . . . . . . . . . 3 . . . . . . . . . . 1 . Reinforcement 15 | . . 4 . . . . 1 . . 6 . . . . . . . 1 . . 3 . Assault 6 | . . . . . . . . . . 2 . 3 . . . . . 1 . . . . Garrison 1 | . . . . . . . 1 . . . . . . . . . . . . . . . Intercept . | . . . . . . . . . . . . . . . . . . . . . . . Construction Impeded 3 | . . 1 . . . . 1 . . 1 . . . . . . . . . . . . Haulers Reinforced . | . . . . . . . . . . . . . . . . . . . . . . . Active Scanning Responses . | . . . . . . . . . . . . . . . . . . . . . . . Cargo Convoy Interrupts 1 | . . . . . . . . . . 1 . . . . . . . . . . . . Stealth | -11 -10 -9 -9 -9 -8 -8 -8 -8 -8 -6 -6 -6 -6 -6 -6 -5 -5 -5 -5 -5 -5 -4 --------- Run | Scr Mat Mat Min Exi Min Mat Sto Gar Rec Fac Gar Fac Low Low Dat Pro Fac Ext Cet Arc Hub Fac Distress Signals 12 | . . 1 . . . . . . . 3 . . . . . . 2 1 2 . 3 . Communications Jammed . | . . . . . . . . . . . . . . . . . . . . . . . Distress Signals . | . . . . . . . . . . . . . . . . . . . . . . . Times Spotted 325 | . 4 40 . 24 3 3 15 12 13 64 36 23 2 . . 5 17 20 16 5 20 3 Peak Tracking Total 10 | . 2 6 . 10 3 1 6 7 5 8 8 6 1 . . 5 4 4 5 2 8 4 Tactical Retreats 42 | . . 2 . 10 . . 2 3 . 7 5 4 1 . . 2 . . 2 . 2 2 Traps | -11 -10 -9 -9 -9 -8 -8 -8 -8 -8 -6 -6 -6 -6 -6 -6 -5 -5 -5 -5 -5 -5 -4 ------- Run | Scr Mat Mat Min Exi Min Mat Sto Gar Rec Fac Gar Fac Low Low Dat Pro Fac Ext Cet Arc Hub Fac Traps Triggered 24 | . . 1 . . . . . 1 . 5 6 . . . . . 3 7 . . 1 . Indirectly . | . . . . . . . . . . . . . . . . . . . . . . . Trap Hack Attempts . | . . . . . . . . . . . . . . . . . . . . . . . Triggered . | . . . . . . . . . . . . . . . . . . . . . . . Disarmed . | . . . . . . . . . . . . . . . . . . . . . . . Reprogrammed . | . . . . . . . . . . . . . . . . . . . . . . . Reused . | . . . . . . . . . . . . . . . . . . . . . . . Traps Extracted . | . . . . . . . . . . . . . . . . . . . . . . . Installed . | . . . . . . . . . . . . . . . . . . . . . . . Triggered 1 | . . . . . . . . . . 1 . . . . . . . . . . . . Exploded 2 | . . . . 2 . . . . . . . . . . . . . . . . . . Machines | -11 -10 -9 -9 -9 -8 -8 -8 -8 -8 -6 -6 -6 -6 -6 -6 -5 -5 -5 -5 -5 -5 -4 ---------- Run | Scr Mat Mat Min Exi Min Mat Sto Gar Rec Fac Gar Fac Low Low Dat Pro Fac Ext Cet Arc Hub Fac Machines Disabled 45 | . . . . 9 . 1 3 2 . 2 8 3 . . . . 4 3 2 2 6 . Max in Single Turn 5 | . . . . 2 . 1 1 1 . . 1 1 . . . . . . 1 1 5 . Garrison Access 6 | . . . . . . . . . . 2 . . . . . . 3 . . . 1 . Garrison Relay 6 | . . . . . . . . 2 . . 4 . . . . . . . . . . . Network Hub 1 | . . . . . . . . . . . . . . . . . . . . . 1 . Energy Cycler 2 | . . . . . . . . . . . . . . . . . . 2 . . . . Machines Sabotaged . | . . . . . . . . . . . . . . . . . . . . . . . Garrisons Compromised 1 | . . . . . . . . . . 1 . . . . . . . . . . . . Overloaded Fab Kills . | . . . . . . . . . . . . . . . . . . . . . . . Fab Network Shutdowns 1 | . . . . . . . . . . . . . . . . . 1 . . . . . Hacking | -11 -10 -9 -9 -9 -8 -8 -8 -8 -8 -6 -6 -6 -6 -6 -6 -5 -5 -5 -5 -5 -5 -4 --------- Run | Scr Mat Mat Min Exi Min Mat Sto Gar Rec Fac Gar Fac Low Low Dat Pro Fac Ext Cet Arc Hub Fac Machines Accessed 57 | . 1 2 . 2 . 3 6 . 2 15 . 2 . 1 3 . 11 5 . . 4 . Terminals 35 | . 1 2 . . . 3 5 . . 9 . 1 . . . . 6 5 . . 3 . Fabricators 4 | . . . . . . . . . . 1 . 1 . . . . 2 . . . . . Repair Stations 1 | . . . . . . . . . . 1 . . . . . . . . . . . . Recycling Units 2 | . . . . . . . . . 2 . . . . . . . . . . . . . Scanalyzers 2 | . . . . . . . . . . 2 . . . . . . . . . . . . Garrison Access 7 | . . . . . . . 1 . . 2 . . . . . . 3 . . . 1 . Total Hacks 128 | . 7 4 . 2 . 6 11 . 2 25 . 5 . 1 22 . 20 12 . . 11 . Successful 72 | . 4 1 . 2 . 1 7 . 2 9 . 1 . 1 22 . 12 2 . . 8 . Failed 56 | . 3 3 . . . 5 4 . . 16 . 4 . . . . 8 10 . . 3 . Catastrophic 11 | . . . . . . 1 1 . . 7 . 1 . . . . 1 . . . . . Database Lockouts . | . . . . . . . . . . . . . . . . . . . . . . . Manual 71 | . 7 2 . 1 . 6 9 . 2 11 . . . . . . 10 12 1 . 10 . Terminals 77 | . 7 4 . . . 6 10 . . 15 . 2 . . . . 11 12 . . 10 . Fabricators 10 | . . . . . . . . . . 1 . 3 . . . . 6 . . . . . Repair Stations 2 | . . . . . . . . . . 2 . . . . . . . . . . . . Recycling Units 2 | . . . . . . . . . 2 . . . . . . . . . . . . . Scanalyzers 5 | . . . . . . . . . . 5 . . . . . . . . . . . . Garrison Access 7 | . . . . . . . 1 . . 2 . . . . . . 3 . . . 1 . Terminal Hacks 46 | . 2 1 . 2 . 1 3 . . 3 . . . 1 22 . 3 2 . . 6 . Record 8 | . . . . 1 . . . . . . . . . . 6 . 1 . . . . . Part Schematic 6 | . . . . . . . . . . . . . . . 6 . . . . . . . Robot Schematic 7 | . . . . . . . . . . . . . . . 7 . . . . . . . Robot Analysis 1 | . 1 . . . . . . . . . . . . . . . . . . . . . Prototype ID Bank 3 | . . . . . . . . . . . . . . . 3 . . . . . . . Open Door 2 | . . . . . . . 1 . . . . . . 1 . . . . . . . . Branch Access Points 3 | . . 1 . . . 1 . . . . . . . . . . 1 . . . . . Unreport Threat 11 | . . . . . . . . . . 3 . . . . . . 1 2 . . 5 . Zone Layout 4 | . 1 . . . . . 2 . . . . . . . . . . . . . 1 . EX-Prototype ID Bank 1 | . . . . 1 . . . . . . . . . . . . . . . . . . Fabricator Hacks 5 | . . . . . . . . . . . . 1 . . . . 4 . . . . . Load Schematic 3 | . . . . . . . . . . . . 1 . . . . 2 . . . . . Build 2 | . . . . . . . . . . . . . . . . . 2 . . . . . Repair Station Hacks 2 | . . . . . . . . . . 2 . . . . . . . . . . . . Scan Component 1 | . . . . . . . . . . 1 . . . . . . . . . . . . Repair 1 | . . . . . . . . . . 1 . . . . . . . . . . . . Recycling Unit Hacks . | . . . . . . . . . . . . . . . . . . . . . . . Scanalyzer 2 | . . . . . . . . . . 2 . . . . . . . . . . . . Insert Component 1 | . . . . . . . . . . 1 . . . . . . . . . . . . Analyze 1 | . . . . . . . . . . 1 . . . . . . . . . . . . Garrison Access Hacks 7 | . . . . . . . 1 . . 2 . . . . . . 3 . . . 1 . Unlock Access 3 | . . . . . . . 1 . . 2 . . . . . . . . . . . . Seal Access 4 | . . . . . . . . . . . . . . . . . 3 . . . 1 . Unauthorized Hacks 10 | . 2 . . . . . 3 . 2 . . . . . . . 2 . . . 1 . Terminals 8 | . 2 . . . . . 3 . . . . . . . . . 2 . . . 1 . Track 1 | . 1 . . . . . . . . . . . . . . . . . . . . . Botnet 5 | . . . . . . . 3 . . . . . . . . . 2 . . . . . Disrupt 2 | . 1 . . . . . . . . . . . . . . . . . . . 1 . Fabricators . | . . . . . . . . . . . . . . . . . . . . . . . Repair Stations . | . . . . . . . . . . . . . . . . . . . . . . . Recycling Units 2 | . . . . . . . . . 2 . . . . . . . . . . . . . Tunnel 2 | . . . . . . . . . 2 . . . . . . . . . . . . . Scanalyzers . | . . . . . . . . . . . . . . . . . . . . . . . Garrison Access . | . . . . . . . . . . . . . . . . . . . . . . . Data Cores Recovered 2 | . . . . . . 1 . . . 1 . . . . . . . . . . . . Used . | . . . . . . . . . . . . . . . . . . . . . . . Hacking Detections 42 | . 1 2 . . . 3 4 . . 14 . 2 . . . . 8 5 . . 3 . Full Trace Events 2 | . . . . . . . . . . 1 . 1 . . . . . . . . . . Feedback Events . | . . . . . . . . . . . . . . . . . . . . . . . Feedback Blocked . | . . . . . . . . . . . . . . . . . . . . . . . Robot Schematics Acquired 7 | . . . . . . . . . . . . . . . 7 . . . . . . . Robots Built 2 | . . . . . . . . . . . . . . . . . 2 . . . . . Matter 318 | . . . . . . . . . . . . . . . . . 318 . . . . . Time 84 | . . . . . . . . . . . . . . . . . 84 . . . . . Total Robot Build Rating 12 | . . . . . . . . . . . . . . . . . 12 . . . . . Part Schematics Acquired 7 | . . . . . . . . . . 1 . . . . 6 . . . . . . . Parts Built . | . . . . . . . . . . . . . . . . . . . . . . . Matter . | . . . . . . . . . . . . . . . . . . . . . . . Time . | . . . . . . . . . . . . . . . . . . . . . . . Total Part Build Rating . | . . . . . . . . . . . . . . . . . . . . . . . Parts Repaired 1 | . . . . . . . . . . 1 . . . . . . . . . . . . Time 47 | . . . . . . . . . . 47 . . . . . . . . . . . . Parts Recycled . | . . . . . . . . . . . . . . . . . . . . . . . Recycled Matter . | . . . . . . . . . . . . . . . . . . . . . . . Retrieved Matter . | . . . . . . . . . . . . . . . . . . . . . . . Retrieved Components . | . . . . . . . . . . . . . . . . . . . . . . . Parts Scanalyzed 1 | . . . . . . . . . . 1 . . . . . . . . . . . . Part Schematics Acquired 1 | . . . . . . . . . . 1 . . . . . . . . . . . . Parts Damaged 1 | . . . . . . . . . . 1 . . . . . . . . . . . . Bothacking | -11 -10 -9 -9 -9 -8 -8 -8 -8 -8 -6 -6 -6 -6 -6 -6 -5 -5 -5 -5 -5 -5 -4 ------------ Run | Scr Mat Mat Min Exi Min Mat Sto Gar Rec Fac Gar Fac Low Low Dat Pro Fac Ext Cet Arc Hub Fac Used RIF Installer 2 | . . . . . . . . 1 . . 1 . . . . . . . . . . . Watcher Feeds 1 | . . . . . . . . . . . 1 . . . . . . . . . . . Robots Hacked 27 | . . . . . . . . . . 5 11 4 . . 1 . 5 1 . . . . Non-combat 1 | . . . . . . . . . . 1 . . . . . . . . . . . . Combat 26 | . . . . . . . . . . 4 11 4 . . 1 . 5 1 . . . . Robot Hacks Applied 31 | . . . . . . . . . . 9 11 4 . . 1 . 5 1 . . . . parse_system 1 | . . . . . . . . . . . . . . . 1 . . . . . . . purge_threat 5 | . . . . . . . . . . 5 . . . . . . . . . . . . reboot_system 4 | . . . . . . . . . . . 1 2 . . . . . 1 . . . . overwrite_iff 7 | . . . . . . . . . . . 4 . . . . . 3 . . . . . formatsys_high 14 | . . . . . . . . . . 4 6 2 . . . . 2 . . . . . Relay Couplers Released 10 | . . . . . . . . 3 . 1 6 . . . . . . . . . . . Machine Destruction 10 | . . . . . . . . 3 . 1 6 . . . . . . . . . . . Attached 9 | . . . . . . . . 3 . . 6 . . . . . . . . . . . Robots Rewired 3 | . . . . . . . . . . . . . . . . . . 3 . . . . Allies Hacked . | . . . . . . . . . . . . . . . . . . . . . . . Hacks Repelled . | . . . . . . . . . . . . . . . . . . . . . . . Allies | -11 -10 -9 -9 -9 -8 -8 -8 -8 -8 -6 -6 -6 -6 -6 -6 -5 -5 -5 -5 -5 -5 -4 -------- Run | Scr Mat Mat Min Exi Min Mat Sto Gar Rec Fac Gar Fac Low Low Dat Pro Fac Ext Cet Arc Hub Fac Total Allies 39 | . . . 3 . . . . . . 4 10 2 . . . 1 7 7 5 . . . Largest Group 7 | . . . 3 3 1 . . . . 3 7 7 . . . 1 5 6 4 4 4 . Highest-Rated Group 380 | . . . 40 40 16 . . . . 96 218 233 . . . 95 195 311 380 380 369 . Highest-Rated Ally 156 | . . . 16 16 16 . . . . 36 41 41 . . . 95 54 156 150 95 95 . Total Orders 7 | . . . . 5 . . . . . 1 . . . . . . 1 . . . . . STAY 5 | . . . . 3 . . . . . 1 . . . . . . 1 . . . . . FOLLOW 2 | . . . . 2 . . . . . . . . . . . . . . . . . . Ally Attacks 390 | . . . . 4 6 . . . . 38 20 34 . . . 9 64 106 61 12 36 . Total Damage 10727 | . . . . 3 76 . . . . 1537 437 1497 . . . 375 1585 2038 1668 459 1052 . Kills 88 | . . . . . 1 . . . . 13 6 9 . . . 2 13 25 9 4 6 . Allies Corrupted 1 | . . . . . . . . . . . . . . . . . . . . . 1 . Allies Melted 1 | . . . . . . . . . . . . . . . . 1 . . . . . . Intel | -11 -10 -9 -9 -9 -8 -8 -8 -8 -8 -6 -6 -6 -6 -6 -6 -5 -5 -5 -5 -5 -5 -4 ------- Run | Scr Mat Mat Min Exi Min Mat Sto Gar Rec Fac Gar Fac Low Low Dat Pro Fac Ext Cet Arc Hub Fac Robot Analysis Total 1 | . 1 . . . . . . . . . . . . . . . . . . . . . Derelict Logs Recovered 2 | . . . . . . . . . . . . . . 1 . 1 . . . . . . Drone Launches . | . . . . . . . . . . . . . . . . . . . . . . . Drone Recoveries . | . . . . . . . . . . . . . . . . . . . . . . . Exploration | -11 -10 -9 -9 -9 -8 -8 -8 -8 -8 -6 -6 -6 -6 -6 -6 -5 -5 -5 -5 -5 -5 -4 ------------- Run | Scr Mat Mat Min Exi Min Mat Sto Gar Rec Fac Gar Fac Low Low Dat Pro Fac Ext Cet Arc Hub Fac Turns Passed 12940 | 65 352 887 309 1982 322 300 440 522 248 2085 958 754 288 199 64 287 786 878 333 78 662 141 Spaces Moved 10927 | 53 347 618 357 1265 182 198 188 257 168 1907 846 904 410 299 90 435 906 820 236 51 338 52 Core 16 | 14 . . . 2 . . . . . . . . . . . . . . . . . . Treads 13 | 13 . . . . . . . . . . . . . . . . . . . . . . Legs 1617 | . . . . 398 182 198 188 257 168 226 . . . . . . . . . . . . Wheels 570 | 26 347 197 . . . . . . . . . . . . . . . . . . . . Hover 8711 | . . 421 357 865 . . . . . 1681 846 904 410 299 90 435 906 820 236 51 338 52 Flight . | . . . . . . . . . . . . . . . . . . . . . . . Fastest Speed 50 | 50 85 56 56 56 140 140 140 140 140 60 66 66 66 66 66 66 66 66 66 66 66 150 Average Speed 88 | 96 89 82 82 121 140 140 140 140 140 85 66 66 66 66 66 66 66 82 66 66 123 214 Slowest Speed 360 | 160 90 185 116 360 140 140 140 140 140 140 66 66 66 66 66 66 110 126 126 66 220 220 Overloaded Moves . | . . . . . . . . . . . . . . . . . . . . . . . Propulsion Burnouts . | . . . . . . . . . . . . . . . . . . . . . . . Robots Hopped . | . . . . . . . . . . . . . . . . . . . . . . . Cave-ins Triggered . | . . . . . . . . . . . . . . . . . . . . . . . Exploration Rate (%) 53 | 5 53 50 80 90 71 20 39 49 50 67 77 24 68 51 74 71 34 86 62 73 30 1 Regions Visited 22 Branch Regions 13 Pre-discovered Areas 4 | . . . . 1 . . . . 2 . . . . . 1 . . . . . . . Known Exits Taken 18 | . . 1 1 1 1 1 1 . 1 1 . 1 1 1 1 1 1 1 1 1 1 . Unknown Exits Taken 2 | 1 1 . . . . . . . . . . . . . . . . . . . . . Scrap Searched 5 | . . . 1 . 1 . . . . . . . 1 1 . 1 . . . . . . Spaces Dug 22 | . . . . . . . . . . 8 . 4 . . . . 6 2 . . 2 . Terrain Destroyed 449 | . . 14 . 33 7 2 34 10 . 27 61 8 2 . . . 17 48 3 7 176 . Melee 1 | . . . . . . . . . . 1 . . . . . . . . . . . . Projectile 129 | . . . . 11 7 2 14 9 . 9 10 8 2 . . . 17 8 3 7 22 . AOE 309 | . . 14 . 19 . . 20 . . 15 47 . . . . . . 40 . . 154 . Terrain Rammed . | . . . . . . . . . . . . . . . . . . . . . . . Walls Destroyed . | . . . . . . . . . . . . . . . . . . . . . . . Machines Disabled . | . . . . . . . . . . . . . . . . . . . . . . . Actions | -11 -10 -9 -9 -9 -8 -8 -8 -8 -8 -6 -6 -6 -6 -6 -6 -5 -5 -5 -5 -5 -5 -4 --------- Run | Scr Mat Mat Min Exi Min Mat Sto Gar Rec Fac Gar Fac Low Low Dat Pro Fac Ext Cet Arc Hub Fac Total 13157 | 64 372 843 366 1541 219 208 309 355 178 2243 1124 1033 423 300 93 434 1056 967 345 80 522 82 Wait 779 | . 7 83 5 91 . . 54 20 6 133 58 72 10 . . . 70 8 19 7 130 6 Move 10907 | 52 346 617 356 1264 181 197 188 255 167 1907 845 903 409 298 89 434 905 819 235 50 338 52 Hop . | . . . . . . . . . . . . . . . . . . . . . . . Pick Up 24 | 3 . 2 1 6 . 2 . . . 5 1 . . . . . . . 1 . 1 2 Fast Attach 77 | 5 4 9 . 12 2 . . 5 . 10 8 1 . . 1 . 7 4 5 . 4 . Attach 15 | . . 1 1 3 . . . . 1 2 2 . . . . . 1 2 . . 1 1 Detach 16 | . 2 . . 5 . . . 1 . 2 3 . . . . . 1 2 . . . . Swap 52 | 2 2 6 . 3 . 1 2 . . 16 8 2 . 1 . . 1 3 5 . . . Drop 68 | 2 2 11 . 16 2 1 . 1 . 10 3 1 . 1 1 . 4 3 7 . 1 2 Fire 759 | . 8 82 3 129 15 7 47 42 3 86 120 29 4 . 2 . 42 50 38 7 34 11 Melee 8 | . . . . . . . . . . 5 3 . . . . . . . . . . . Ram 8 | . . . . . . . . . . . . . . . . . . . . . 8 . Kick . | . . . . . . . . . . . . . . . . . . . . . . . Crush . | . . . . . . . . . . . . . . . . . . . . . . . Escape Stasis 122 | . . . . . . . . 2 . 33 35 . . . . . . 52 . . . . Rewire . | . . . . . . . . . . . . . . . . . . . . . . . Trap . | . . . . . . . . . . . . . . . . . . . . . . . Miscellaneous 322 | . 1 32 . 12 19 . 18 29 1 34 38 25 . . . . 25 24 35 16 5 8 Route ------- -11/Scrapyard -10/Materials (discovered 2 exits: *Mat / [*Min]) -9/Materials (discovered 2 exits: *Mat / *Min) -9/Mines (discovered 4 exits: *Mat x2 / *Exi / *Zio) -9/Exiles (discovered 2 exits: *Min x2) -8/Mines -8/Materials -8/Storage -8/Garrison -8/Recycling -6/Factory (discovered 4 exits: *Fac x3 / Gar) -6/Garrison (discovered 3 exits: *Fac x3) -6/Factory (discovered 2 exits: *Fac / *Low) -6/Lower Caves -6/Lower Caves -6/Data Miner -5/Proximity Caves -5/Factory (discovered 5 exits: *Fac / Upp x2 / *Ext x2) -5/Extension (discovered 3 exits: *Fac x2 / *Cet) -5/Cetus (discovered 2 exits: *Fac / *Arc) -5/Archives (discovered 2 exits: *Fac / *Hub) -5/Hub_04(d) -4/Factory History --------- Turn | Location | Event 4 | -11/Scrapyard | Upgraded with Propulsion slot (x1) 4 | -11/Scrapyard | Upgraded with Utility slot (x1) 4 | -11/Scrapyard | Upgraded with Weapon slot (x1) 5 | -11/Scrapyard | Discovered new exit (range 17) 66 | -11/Scrapyard | Entered Materials 143 | -10/Materials | Discovered new exit (range 11) 302 | -10/Materials | Build established: Mutant 315 | -10/Materials | Discovered new exit (range 18) 418 | -10/Materials | Entered another Materials area 420 | -9/Materials | Reached level 2 421 | -9/Materials | Upgraded with Utility slot (x2) 684 | -9/Materials | Discovered new exit (range 9) 763 | -9/Materials | Reached level 3 1008 | -9/Materials | Upgraded with Utility slot (x1) 1133 | -9/Materials | Discovered new exit (range 11) 1221 | -9/Materials | Identified exit to Mines 1264 | -9/Materials | Reached level 4 1305 | -9/Materials | Entered Mines 1320 | -9/Mines | Met a Derelict bent on vengeance 1335 | -9/Mines | Assisted by bots powering up and referring to "LRC-V3" 1373 | -9/Mines | Discovered new exit (range 5) 1378 | -9/Mines | A Derelict revealed a hidden shortcut to a safe place 1385 | -9/Mines | Deemed a non-threat by the Exiles lab entrance 1386 | -9/Mines | Discovered new exit (range 5) 1393 | -9/Mines | Identified exit to Zion 1426 | -9/Mines | Found a damaged Exp. Sensor Array with a note attached 1427 | -9/Mines | Found Prototype Device 1428 | -9/Mines | Identified Exp. Sensor Array 1532 | -9/Mines | Discovered new exit (range 19) 1608 | -9/Mines | Identified exit to Exiles 1614 | -9/Mines | Entered Exiles 1614 | -9/Exiles | Accompanied by 3 allies 1630 | -9/Exiles | Discovered new exit (range 16) 1646 | -9/Exiles | Met 8R-AWN 1661 | -9/Exiles | Met EX-HEX 1701 | -9/Exiles | Met EX-DEC 1734 | -9/Exiles | Build established: Scavenger-Skirmisher 1736 | -9/Exiles | Visited The Gauntlet 1784 | -9/Exiles | Learned location of Zion (-7) 1829 | -9/Exiles | Discovered new exit (range 15) 1908 | -9/Exiles | Met EX-BIN 1927 | -9/Exiles | Aligned with FarCom system 1928 | -9/Exiles | Given EX-Vault access code 1956 | -9/Exiles | Opened EX-Vault 1968 | -9/Exiles | Found Superbattery 1994 | -9/Exiles | Warned to stay clear of 0b10 Research branches 2508 | -9/Exiles | Attacked by the Exiles 2674 | -9/Exiles | Core integrity fell below 50% 2710 | -9/Exiles | Destroyed 8R-AWN 2719 | -9/Exiles | Found Prototype Protection 2719 | -9/Exiles | Identified 8R-AWN's Armor/EX 2772 | -9/Exiles | Found Prototype Ballistic Gun 2772 | -9/Exiles | Identified 8R-AWN's Boregun 3159 | -9/Exiles | Destroyed EX-HEX 3183 | -9/Exiles | Destroyed EX-DEC 3238 | -9/Exiles | Destroyed EX-BIN 3253 | -9/Exiles | Build established: Scavenger-Mutant 3594 | -9/Exiles | Identified exit to Mines 3596 | -9/Exiles | Entered Mines 3596 | -8/Mines | Accompanied by 2 allies 3620 | -8/Mines | Reached level 5 3909 | -8/Mines | Discovered new exit (range 5) 3914 | -8/Mines | Identified exit to Materials 3918 | -8/Mines | Entered Materials 3920 | -8/Materials | Reached level 6 4074 | -8/Materials | Discovered new exit (range 8) 4109 | -8/Materials | Identified exit to Storage 4218 | -8/Materials | Entered Storage 4220 | -8/Storage | Reached level 7 4565 | -8/Storage | Reached level 8 4631 | -8/Storage | Garrison activated, responded to threat 4658 | -8/Storage | Identified exit to Garrison 4658 | -8/Storage | Entered Garrison 4665 | -8/Garrison | Installed Relay Interface Framework 4756 | -8/Garrison | Triggered checkpoint 4818 | -8/Garrison | Garrison Relay disabled 4818 | -8/Garrison | Reached level 9 4830 | -8/Garrison | Upgraded with Utility slot (x2) 4952 | -8/Garrison | Triggered checkpoint 5103 | -8/Garrison | Discovered new exit (range 8) 5118 | -8/Garrison | Triggered checkpoint 5141 | -8/Garrison | Garrison Relay disabled 5151 | -8/Garrison | Reached level 10 5177 | -8/Garrison | Identified exit to Recycling 5180 | -8/Garrison | Entered Recycling 5253 | -8/Recycling | Spotter reported a threat 5256 | -8/Recycling | Spotter reported a threat 5256 | -8/Recycling | Spotter reported a threat 5256 | -8/Recycling | Spotter reported a threat 5309 | -8/Recycling | Spotter reported a threat 5309 | -8/Recycling | Spotter reported a threat 5339 | -8/Recycling | Spotter reported a threat 5350 | -8/Recycling | Spotter reported a threat 5370 | -8/Recycling | Spotter reported a threat 5379 | -8/Recycling | Spotter reported a threat 5383 | -8/Recycling | Spotter reported a threat 5394 | -8/Recycling | Spotter reported a threat 5403 | -8/Recycling | Spotter reported a threat 5406 | -8/Recycling | Discovered new exit (range 17) 5423 | -8/Recycling | Spotter reported a threat 5427 | -8/Recycling | Identified exit to Factory 5428 | -8/Recycling | Entered Factory 5430 | -6/Factory | Reached level 11 5498 | -6/Factory | Reached level 12 5511 | -6/Factory | Core integrity fell below 50% 5654 | -6/Factory | Discovered new exit (range 12) 5923 | -6/Factory | Identified exit to Factory 6244 | -6/Factory | Reached level 13 6440 | -6/Factory | Repaired Broken Cmb. Antigrav System 6555 | -6/Factory | Reached level 14 6563 | -6/Factory | Upgraded with Utility slot (x2) 6583 | -6/Factory | Upgraded with Propulsion slot (x1) 6642 | -6/Factory | Cargo convoy interrupted 6662 | -6/Factory | Spotted B-75 Beast 6896 | -6/Factory | Identified exit to Garrison 7036 | -6/Factory | Reached level 15 7285 | -6/Factory | Discovered exit to Factory (range 17) 7385 | -6/Factory | Discovered exit to Factory (range 16) 7513 | -6/Factory | Identified exit to Garrison 7513 | -6/Factory | Entered Garrison 7573 | -6/Garrison | Triggered checkpoint 7590 | -6/Garrison | Reached level 16 7660 | -6/Garrison | Garrison Relay disabled 7662 | -6/Garrison | Destroyed 8 combat bots 7702 | -6/Garrison | Triggered checkpoint 7716 | -6/Garrison | Reached level 17 7716 | -6/Garrison | Triggered checkpoint 7722 | -6/Garrison | Spotted B-75 Beast 7752 | -6/Garrison | Destroyed 9 combat bots 7889 | -6/Garrison | Destroyed B-75 Beast 7954 | -6/Garrison | Discovered new exit (range 11) 7965 | -6/Garrison | Expanded RIF knowledge: Watcher Feeds 7981 | -6/Garrison | Triggered checkpoint 8017 | -6/Garrison | Garrison Relay disabled 8022 | -6/Garrison | Upgraded with Utility slot (x1) 8124 | -6/Garrison | Found Quantum Capacitor 8205 | -6/Garrison | Reached level 18 8205 | -6/Garrison | Triggered checkpoint 8219 | -6/Garrison | Garrison Relay disabled 8237 | -6/Garrison | Discovered new exit (range 11) 8259 | -6/Garrison | Triggered checkpoint 8277 | -6/Garrison | Discovered new exit (range 10) 8290 | -6/Garrison | Triggered checkpoint 8320 | -6/Garrison | Build established: Bothacker-Mutant 8321 | -6/Garrison | Garrison Relay disabled 8364 | -6/Garrison | Triggered checkpoint 8439 | -6/Garrison | Identified exit to Factory 8471 | -6/Garrison | Entered Factory 8471 | -6/Factory | Accompanied by 5 allies 8734 | -6/Factory | Discovered exit to Factory (range 16) 8821 | -6/Factory | First assault squad dispatched 8974 | -6/Factory | Reached level 19 9102 | -6/Factory | System corruption reached 10% 9222 | -6/Factory | Discovered new exit (range 4) 9224 | -6/Factory | Identified exit to Lower Caves 9225 | -6/Factory | Entered Lower Caves 9463 | -6/Lower Caves | Discovered new exit (range 14) 9513 | -6/Lower Caves | Identified exit to Lower Caves 9513 | -6/Lower Caves | Entered another Lower Caves area 9645 | -6/Lower Caves | Discovered new exit (range 16) 9654 | -6/Lower Caves | Identified exit to Data Miner 9685 | -6/Lower Caves | Learned 8 Factory zone layouts 9712 | -6/Lower Caves | Entered Data Miner 9712 | -6/Data Miner | Discovered new exit (range 6) 9725 | -6/Data Miner | Met Data Miner 9746 | -6/Data Miner | Learned location of Section 7 (-3) 9746 | -6/Data Miner | Acquired the access code to Warlord's prototype stash 9755 | -6/Data Miner | Received God Mode back door access code from Data Miner 9770 | -6/Data Miner | Identified exit to Proximity Caves 9776 | -6/Data Miner | Entered Proximity Caves 9778 | -5/Proximity Caves | Reached level 20 9808 | -5/Proximity Caves | Spotted B-75 Beast 9810 | -5/Proximity Caves | Escorted by Enhanced Grunt 9879 | -5/Proximity Caves | Attracted the attention of an 0b10 checkpoint 9932 | -5/Proximity Caves | Learned 4 Factory zone layouts 10028 | -5/Proximity Caves | Discovered exit to Factory (range 12) 10063 | -5/Proximity Caves | Entered Factory 10065 | -5/Factory | Reached level 21 10242 | -5/Factory | Core integrity fell below 50% 10456 | -5/Factory | Local fabrication network quarantined 10463 | -5/Factory | Fabricated P-70 Sage (x2) 10525 | -5/Factory | Discovered new exit (range 13) 10533 | -5/Factory | Identified exit to Factory 10582 | -5/Factory | Identified exit to Upper Caves 10582 | -5/Factory | Identified exit to Extension 10741 | -5/Factory | Incoming investigation squad redirected 10849 | -5/Factory | Entered Extension 10851 | -5/Extension | Reached level 22 10871 | -5/Extension | Rescued a captive Derelict 10886 | -5/Extension | Incoming investigation squad redirected 10888 | -5/Extension | Rescued A7 11028 | -5/Extension | Spotted B-75 Beast 11036 | -5/Extension | Destroyed B-75 Beast 11060 | -5/Extension | Spotted B-75 Beast 11105 | -5/Extension | Build established: Hacker-Mutant 11106 | -5/Extension | Destroyed B-75 Beast 11149 | -5/Extension | First assault squad dispatched 11166 | -5/Extension | Incoming assault squad redirected 11320 | -5/Extension | Energy Cycler disabled 11321 | -5/Extension | Rescued a captive Derelict 11321 | -5/Extension | Rescued a captive Derelict 11321 | -5/Extension | Rescued a captive Derelict 11322 | -5/Extension | Rescued a captive Derelict 11323 | -5/Extension | Rescued a captive Derelict 11324 | -5/Extension | Rescued a captive Derelict 11368 | -5/Extension | Discovered exit to Factory (range 16) 11675 | -5/Extension | Reached level 23 11716 | -5/Extension | Discovered new exit (range 17) 11717 | -5/Extension | Discovered exit to Factory (range 16) 11726 | -5/Extension | Identified exit to Cetus 11727 | -5/Extension | Entered Cetus 11727 | -5/Cetus | Accompanied by 1 ally (A7) 11732 | -5/Cetus | Acquired a Cetus Manufacturing Module code from A7 11739 | -5/Cetus | Spotted Cetus Guard 11740 | -5/Cetus | Spotted Cetus Guard 11741 | -5/Cetus | Spotted Cetus Guard 11745 | -5/Cetus | Destroyed Cetus Guard 11745 | -5/Cetus | Spotted Cetus Guard 11753 | -5/Cetus | Destroyed Cetus Guard 11755 | -5/Cetus | Allies destroyed Cetus Guard 11755 | -5/Cetus | Destroyed Cetus Guard 11841 | -5/Cetus | Started Cetus Manufacturing Module 11851 | -5/Cetus | Discovered new exit (range 17) 11866 | -5/Cetus | Manufactured an Enhanced Grunt 11891 | -5/Cetus | Manufactured an Enhanced Grunt 11907 | -5/Cetus | Extracted ID and sensor layout for unrecognized location from A7's data core 11916 | -5/Cetus | Manufactured an Enhanced Grunt 11931 | -5/Cetus | Spotted Cetus Guard 11931 | -5/Cetus | Spotted Cetus Guard 11932 | -5/Cetus | Spotted Cetus Guard 11941 | -5/Cetus | Manufactured an Enhanced Grunt 11946 | -5/Cetus | Destroyed Cetus Guard 11947 | -5/Cetus | Spotted Cetus Guard 11966 | -5/Cetus | Manufactured an Enhanced Grunt 11967 | -5/Cetus | Allies destroyed Cetus Guard 11968 | -5/Cetus | Allies destroyed Cetus Guard 11973 | -5/Cetus | Destroyed Cetus Guard 11979 | -5/Cetus | Discovered exit to Factory (range 17) 11984 | -5/Cetus | Met Revision 17 12045 | -5/Cetus | Identified exit to Archives 12060 | -5/Cetus | Entered Archives 12060 | -5/Archives | Accompanied by 4 allies 12074 | -5/Archives | Build established: Scavenger-Mutant 12104 | -5/Archives | Discovered exit to Factory (range 15) 12119 | -5/Archives | Discovered new exit (range 14) 12130 | -5/Archives | Identified exit to Hub_04(d) 12138 | -5/Archives | Entered Hub_04(d) 12138 | -5/Hub_04(d) | Accompanied by 4 allies 12140 | -5/Hub_04(d) | Reached level 24 12223 | -5/Hub_04(d) | Discovered exit to Factory (range 16) 12368 | -5/Hub_04(d) | Network Hub disabled 12438 | -5/Hub_04(d) | Build established: Hacker-Mutant 12685 | -5/Hub_04(d) | Spotted Lightning 12685 | -5/Hub_04(d) | Spotted Lightning 12685 | -5/Hub_04(d) | Spotted Lightning 12687 | -5/Hub_04(d) | System corruption reached 10% 12745 | -5/Hub_04(d) | Core integrity fell below 20% 12755 | -5/Hub_04(d) | Found Prototype Energy Cannon 12774 | -5/Hub_04(d) | System corruption reached 30% 12787 | -5/Hub_04(d) | Lost 3 parts (1n2u) 12800 | -5/Hub_04(d) | Entered Factory 12801 | -4/Factory | Core integrity fell below 50% 12801 | -4/Factory | Core integrity fell below 20% 12808 | -4/Factory | Identified EMDS 12891 | -4/Factory | Reached level 25 12941 | -4/Factory | Self-destructed Last Messages --------------- 12832_ EMDS Slug penetrates Wall. 12849_ Critical hit (Burn: +50). 12850_ EMDS Slug penetrates G-67 Veteran. 12851_ G-67 Veteran system terminally corrupted. 12851_ Lgt. Antimatter Reactor fried. 12851_ Adv. Heat Sink fried. 12864_ G-67 Veteran misfires. 12864_ EMDS Slug penetrates B-60 Warrior. 12868_ Critical hit (Burn: +50). 12876_ EMDS Slug penetrates B-60 Warrior. 12877_ B-60 Warrior system terminally corrupted. 12877_ Acquired 110 matter. 12880_ Critical hit (Burn: +37). 12890_ EMDS Slug penetrates G-67 Veteran. 12891_ G-67 Veteran system terminally corrupted. 12891_ Reached level 25. 12891_ Electrolaser fried. 12891_ Adv. Heat Sink fried. 12907_ Used Protomatter to restore core integrity (+183, depleted) 12915_ Acquired 10 matter. Map ----- +----------------------------------------------------+ | ???????????????????????????????????????????? | | ???????????????????????????????????????????? | | ???????????????????????????????????????????? | | ???????????????????????????????????????????? | | ???????????????????????????????????????????? | | ???????????????????????????????????????????? | | ???????????????????????????????????????????? | | ????????????????????????????##############?? | | ????????????????????????????# #?? | | ????????????????????????????# #?? | | ????????????????????????????# #?? | | ????????????????????????????# =%! #?? | | ????????????????????????????# * #?? | | ?????????????????##+######### #?? | | ????????????????? # #?? | | ????????????????? # #?? | | ????????????????? # #?? | | ?????????????????? # #?? | | ???????????????????? # = = #?? | | ??????????????????????# # =%[ #?? | | ??????????????????????# #####+########?? | | ??????????????????????# =%[ #?????? | | ??????????????????????# [= #?????? | | ??????????????????????# #?????? | | ??????????????????????# #?????? | | ??????????????????????# @ #?????? | | ????????????????????######+###########?????? | | ????????????????????# #?????????? | | ????????????????????# #?????????? | | ????????????????????# #?????????? | | ????????????????????# """ """" #?????????? | | ????????????????????# """ """" #?????????? | | ????????????????????# """ """" #?????????? | | ????????????????????# """" #?????????? | | ????????????????????# ""??? #?????????? | | ????????????????????? ""??????????????? | | ?????????????????????? ""??????????????? | | ??????????????????????? ???????????????? | | ?????????????????????? ???????????????? | | ??????????????????????######???????????????? | | ???????????????????????????????????????????? | | ???????????????????????????????????????????? | | ???????????????????????????????????????????? | | ???????????????????????????????????????????? | | ???????????????????????????????????????????? | | ???????????????????????????????????????????? | | ???????????????????????????????????????????? | | ???????????????????????????????????????????? | | ???????????????????????????????????????????? | | ???????????????????????????????????????????? | +----------------------------------------------------+ Best States ------------- Heat Dissipation 94 Energy Generation 18 Energy Capacity 670 Matter Stores 300 Matter Capacity 300 Sight Range 19 Robot Scan Range 36 Terrain Scan Density 10 Additional Mass Support 12 EM Shielding 3 Armor Coverage 1000 Resistance: TH 15 Resistance: EX 90 Evasion (%) 55 Targeting Accuracy 5 Core Analysis 10 Armor Integrity Analysis 20 Recoil Reduction 2 Offensive Hacking 32 Relay Coupler Types 249 Relay Coupler Value 5 Item Schematics ----------------- Cmb. Antigrav System | -6/Factory | Scanalyzed Combat Drone Bay | -6/Data Miner | Free Lgt. Regenerative Plating | -6/Data Miner | Free Exp. Flexi-carbon Leg | -6/Data Miner | Free Cmb. Gravmag System | -6/Data Miner | Free Tactical Coordination Suite | -6/Data Miner | Free Plasma Sword | -6/Data Miner | Free Robot Schematics ------------------ S-27 Virus | -6/Data Miner | Free G-50 Soldier | -6/Data Miner | Free G-67 Veteran | -6/Data Miner | Free H-66 Slayer | -6/Data Miner | Free P-70 Sage | -6/Data Miner | Free I-36 Angel | -6/Data Miner | Free I-47 Archangel | -6/Data Miner | Free Fabricated ------------ P-70 Sage | x2 | -5/Factory Alien Tech Used ----------------- None Achievements -------------- None Challenges ------------ None RPGLIKE | -11 -10 -9 -9 -9 -8 -8 -8 -8 -8 -6 -6 -6 -6 -6 -6 -5 -5 -5 -5 -5 -5 -4 --------- Run | Scr Mat Mat Min Exi Min Mat Sto Gar Rec Fac Gar Fac Low Low Dat Pro Fac Ext Cet Arc Hub Fac Levels Raised 24 | . . 3 . . 1 1 2 2 . 5 3 1 . . . 1 1 2 . . 1 1 XP Earned 39031 | 3000 280 4245 500 350 872 1765 2715 2826 1335 6826 4533 1208 170 170 220 1381 2007 1708 896 356 574 1094 XP Spent 37360 | 2350 . 3300 1100 700 750 . . 4700 . 7400 6260 . . . 2000 . . . . 1440 7360 . Upgrades 81 | 6 . 3 8 10 1 . . 3 . 13 13 . . . 4 . . . . 4 16 . Propulsion Slot 2 | 1 . . . . . . . . . 1 . . . . . . . . . . . . Utility Slot 9 | 1 . 3 . . . . . 2 . 2 1 . . . . . . . . . . . Weapon Slot 1 | 1 . . . . . . . . . . . . . . . . . . . . . . Core Integrity 52 | . . . . 10 . . . . . 10 12 . . . . . . . . 4 16 . Inventory Capacity 4 | 2 . . . . 1 . . 1 . . . . . . . . . . . . . . Sight Range 1 | 1 . . . . . . . . . . . . . . . . . . . . . . Sensor Range 8 | . . . 8 . . . . . . . . . . . . . . . . . . . Hack Attack % 4 | . . . . . . . . . . . . . . . 4 . . . . . . . Protomatter Created 1790 | . 50 252 . 100 45 52 133 216 2 192 201 82 . . . . 86 119 199 . . 61 Integrity Restored 7100 | . 22 680 . 279 414 . 377 648 6 723 867 549 . . . . 570 531 771 366 114 183 Core 6919 | . 22 561 . 279 414 . 315 648 6 723 867 549 . . . . 570 531 771 366 114 183 Parts 181 | . . 119 . . . . 62 . . . . . . . . . . . . . . . Protomatter Decayed 1429 | . 42 17 . 10 . 52 6 . . 377 . 80 120 . . 48 71 450 . . 156 . Game ------ Seed ArchitectCarbideNegator Manual? 0 Play Time 02:23:17 Cumulative 229.8 hours Start 2021.09.06 @ 19:56:20 End 2021.09.08 @ 18:31:49 Sessions 5 Manual Loads 0 Difficulty Rogue Special Mode Winter2019/RPGLIKE Game No. 288 Rogue 201 Adventurer 87 Explorer 0 Win Type - Total 5 Types 3/0/1/1/0/0/0/0/0 Lore% 70 Gallery% 79 Achievement% 66 Wizard Run 0 Options --------- ASCII 0 Keyboard 1 Movement Numpad Keybinds 0 Fullscreen 1 Font 18/Smallcaps Map View 76x50 Tactical HUD 1 Map Filters NONE Filters NONE Steam 1 RUN: 4205a34d-93eb-44bc-a00e-49a4b086503f